bitfinex-derivatives/quotes_BTCF0:USTF0_20260221
["timestamp","ask_amount","ask_price","bid_price","bid_amount"]
[1771705902593,0.014579,68612.0,68608.0,0.014579]
[1771705907498,0.014579,68612.0,68607.0,0.01458]
[1771705923417,0.014578,68616.0,68610.0,0.014579]
[1771705923614,0.014578,68615.0,68610.0,0.014579]
[1771705923824,0.014578,68615.0,68609.0,0.014579]
[1771705924417,0.014578,68614.0,68609.0,0.014579]
[1771705925715,0.014578,68615.0,68609.0,0.014579]
[1771705927115,0.014578,68615.0,68610.0,0.014579]
[1771705927318,0.014578,68615.0,68609.0,0.029158]
[1771705927815,0.014578,68615.0,68609.0,0.014579]
[1771705928418,0.029156,68615.0,68609.0,0.014579]
[1771705928718,0.014578,68614.0,68609.0,0.014579]
[1771705929520,0.21632466,68613.0,68609.0,0.014579]
[1771705929817,0.014578,68614.0,68609.0,0.014579]
[1771705930021,0.21632486,68613.0,68609.0,0.014579]
[1771705930210,0.014578,68614.0,68609.0,0.014579]
[1771705930410,0.21632467,68613.0,68609.0,0.014579]
[1771705930607,0.014578,68614.0,68609.0,0.014579]
[1771705930812,0.21632467,68613.0,68609.0,0.014579]
[1771705931013,0.014578,68614.0,68608.0,0.014579]
[1771705931211,0.21632478,68613.0,68608.0,0.014579]
[1771705931411,0.014578,68614.0,68608.0,0.014579]
[1771705931605,0.21632462,68613.0,68608.0,0.014579]
[1771705931811,0.014578,68614.0,68608.0,0.014579]
[1771705932021,0.21632604,68613.0,68608.0,0.014579]
[1771705932219,0.014578,68614.0,68608.0,0.014579]
[1771705932420,0.21632591,68613.0,68608.0,0.014579]
[1771705932621,0.014578,68614.0,68608.0,0.014579]
[1771705932814,0.21632591,68613.0,68608.0,0.014579]
[1771705933015,0.014578,68614.0,68608.0,0.014579]
[1771705933320,0.21635367,68613.0,68608.0,0.014579]
[1771705933520,0.014578,68614.0,68608.0,0.014579]
[1771705933713,0.21635491,68613.0,68608.0,0.014579]
[1771705933913,0.014578,68614.0,68608.0,0.014579]
[1771705934109,0.21635426,68613.0,68608.0,0.014579]
[1771705934322,0.014578,68614.0,68608.0,0.014579]
[1771705934519,0.21635396,68613.0,68608.0,0.014579]
[1771705934709,0.014578,68614.0,68608.0,0.014579]
[1771705934910,0.21635396,68613.0,68608.0,0.014579]
[1771705935116,0.014578,68614.0,68608.0,0.014579]
[1771705935413,0.21634866,68613.0,68608.0,0.014579]
[1771705935708,0.014578,68614.0,68608.0,0.014579]
[1771705935912,0.21634838,68613.0,68608.0,0.014579]
[1771705936122,0.014578,68614.0,68608.0,0.014579]
[1771705936317,0.21634856,68613.0,68608.0,0.014579]
[1771705936517,0.014578,68614.0,68608.0,0.014579]
[1771705936717,0.21634856,68613.0,68608.0,0.014579]
[1771705936920,0.014578,68614.0,68608.0,0.014579]
[1771705937129,0.21634856,68613.0,68609.0,0.014579]
[1771705937420,0.014578,68615.0,68609.0,0.014579]
[1771705937626,0.21634852,68614.0,68609.0,0.014579]
[1771705937818,0.21634852,68613.0,68609.0,0.014579]
[1771705938018,0.014578,68614.0,68609.0,0.014579]
[1771705938221,0.21634852,68613.0,68610.0,0.014579]
[1771705938425,0.014578,68615.0,68610.0,0.014579]
[1771705938721,0.2163485,68614.0,68610.0,0.014579]
[1771705938919,0.2163485,68613.0,68610.0,0.014579]
[1771705939122,0.014578,68615.0,68610.0,0.014579]
[1771705939419,0.2163485,68614.0,68610.0,0.014579]
[1771705939621,0.014578,68615.0,68609.0,0.014579]
[1771705940325,0.014576,68626.0,68612.0,0.014579]
[1771705940516,0.014576,68626.0,68614.0,0.014578]
[1771705940517,0.014577,68621.0,68614.0,0.014578]
[1771705940718,0.014577,68621.0,68613.0,0.014578]
[1771705941624,0.014577,68621.0,68615.0,0.014578]
[1771705941925,0.029154,68621.0,68615.0,0.014578]
[1771705942621,0.014577,68621.0,68615.0,0.014578]
[1771705943317,0.014576,68623.0,68615.0,0.014578]
[1771705944030,0.014577,68621.0,68615.0,0.014578]
[1771705946828,0.029154,68621.0,68615.0,0.014578]
[1771705947024,0.014577,68618.0,68612.0,0.014579]
[1771705947226,0.014577,68618.0,68611.0,0.014579]
[1771705947426,0.014578,68617.0,68612.0,0.014578]
[1771705949028,0.014578,68617.0,68611.0,0.014579]
[1771705950325,0.014578,68617.0,68609.0,0.12231691]
[1771705950326,0.014578,68616.0,68610.0,0.014579]
[1771705950527,0.014578,68615.0,68610.0,0.014579]
[1771705954539,0.014578,68615.0,68611.0,0.014579]
[1771705958337,0.014579,68613.0,68608.0,0.014579]
[1771705958536,0.014578,68613.0,68608.0,0.014579]
[1771705958736,0.014579,68612.0,68608.0,0.014579]
[1771705960437,0.014578,68614.0,68609.0,0.014579]
[1771705960637,0.001,68612.0,68609.0,0.014579]
[1771705962445,0.014578,68614.0,68609.0,0.014579]
[1771705962743,0.001,68612.0,68609.0,0.014579]
[1771705962944,0.001,68612.0,68608.0,0.014579]
[1771705963143,0.001,68612.0,68610.0,0.014579]
[1771705963642,0.014578,68614.0,68610.0,0.014579]
[1771705964246,0.001,68612.0,68610.0,0.014579]
[1771705965539,0.014578,68614.0,68610.0,0.014579]
[1771705966246,0.001,68612.0,68610.0,0.014579]
[1771705966844,0.014578,68614.0,68610.0,0.014579]
[1771705967441,0.001,68612.0,68610.0,0.014579]
[1771705969043,0.014578,68614.0,68610.0,0.014579]
[1771705970646,0.014578,68615.0,68610.0,0.014579]
[1771705970945,0.014578,68616.0,68611.0,0.014579]
[1771705971146,0.014577,68620.0,68615.0,0.014578]
[1771705973741,0.014577,68620.0,68615.0,0.029156]
[1771705973942,0.014577,68620.0,68615.0,0.014578]
[1771705978957,0.014577,68619.0,68614.0,0.014578]
[1771705979448,0.014577,68619.0,68612.0,0.014579]
[1771705980556,0.014577,68618.0,68612.0,0.014579]
[1771705985057,0.014577,68618.0,68612.0,0.029158]
[1771705985253,0.014577,68618.0,68612.0,0.014579]
[1771705985961,0.014577,68618.0,68612.0,0.029157]
[1771705986163,0.014577,68618.0,68612.0,0.014578]
[1771705986664,0.014577,68618.0,68612.0,0.029156]
[1771705987057,0.014577,68618.0,68612.0,0.014578]
[1771705987656,0.014578,68616.0,68610.0,0.014579]
[1771705991159,0.014578,68615.0,68610.0,0.014579]
[1771705992966,0.014578,68614.0,68609.0,0.014579]
[1771705993161,0.014578,68613.0,68608.0,0.014579]
[1771705993464,0.014578,68614.0,68609.0,0.014579]
[1771705996164,0.014579,68612.0,68606.0,0.01458]
[1771705996377,0.014581,68603.0,68594.0,0.45197771]
[1771705996669,0.01458,68604.0,68599.0,0.014581]
[1771705996866,0.014581,68603.0,68597.0,0.014582]
[1771705997062,0.014581,68603.0,68595.0,0.014582]
[1771705997263,0.014581,68603.0,68597.0,0.014582]
[1771705997462,0.014581,68603.0,68597.0,0.029164]
[1771705997670,0.014581,68602.0,68597.0,0.014582]
[1771705997869,0.014581,68603.0,68598.0,0.014582]
[1771706000471,0.014581,68603.0,68599.0,0.014581]
[1771706003470,0.01458,68604.0,68599.0,0.014581]
[1771706010878,0.01458,68604.0,68597.0,0.014582]
[1771706011265,0.01458,68604.0,68599.0,0.014581]
[1771706015679,0.014581,68603.0,68597.0,0.014582]
[1771706016582,0.014581,68603.0,68598.0,0.014581]
[1771706016780,0.014581,68603.0,68599.0,0.014581]
[1771706018678,0.01458,68604.0,68599.0,0.014581]
[1771706019678,0.17687663,68610.0,68592.0,0.09799018]
[1771706019880,0.01458,68604.0,68594.0,0.014582]
[1771706020578,0.014581,68600.0,68595.0,0.014582]
[1771706021780,0.029162,68600.0,68594.0,0.014582]
[1771706021983,0.014582,68596.0,68590.0,0.014583]
[1771706022180,0.014582,68596.0,68591.0,0.014583]
[1771706022390,0.014582,68597.0,68592.0,0.014583]
[1771706023885,0.014582,68596.0,68591.0,0.014583]
[1771706024090,0.014582,68597.0,68592.0,0.014583]
[1771706026184,0.014582,68598.0,68592.0,0.014583]
[1771706026487,0.014581,68602.0,68595.0,0.014582]
[1771706026686,0.014581,68601.0,68596.0,0.014582]
[1771706027386,0.014582,68598.0,68593.0,0.014582]
[1771706030886,0.014579,68609.0,68594.0,0.014582]
[1771706031087,0.014581,68601.0,68595.0,0.014582]
[1771706031289,0.014581,68600.0,68595.0,0.014582]
[1771706041097,0.014581,68600.0,68594.0,0.014582]
[1771706043200,0.01458,68604.0,68594.0,0.014582]
[1771706044309,0.01458,68606.0,68598.0,0.014581]
[1771706045612,0.01458,68604.0,68598.0,0.014581]
[1771706048912,0.02916,68604.0,68597.0,0.014582]
[1771706049412,0.01458,68604.0,68597.0,0.014582]
[1771706050113,0.01458,68604.0,68598.0,0.014582]
[1771706050912,0.01458,68604.0,68597.0,0.014582]
[1771706051612,0.02916,68604.0,68597.0,0.014582]
[1771706051806,0.01458,68604.0,68597.0,0.014582]
[1771706052215,0.014581,68603.0,68597.0,0.014582]
[1771706052415,0.014581,68602.0,68594.0,0.014582]
[1771706053118,0.014581,68601.0,68595.0,0.014582]
[1771706058627,0.01458,68603.0,68597.0,0.014582]
[1771706058923,0.01458,68604.0,68598.0,0.014581]
[1771706066129,0.014581,68603.0,68597.0,0.014582]
[1771706067434,0.014581,68601.0,68594.0,0.014582]
[1771706068227,0.014581,68602.0,68595.0,0.014582]
[1771706070532,0.014581,68601.0,68595.0,0.014582]
[1771706071537,0.029162,68601.0,68595.0,0.014582]
[1771706071728,0.014581,68601.0,68595.0,0.014582]
[1771706076036,0.014581,68601.0,68595.0,0.015382]
[1771706076235,0.014581,68601.0,68595.0,0.014582]
[1771706076635,0.029162,68601.0,68595.0,0.014582]
[1771706076839,0.014581,68600.0,68594.0,0.029164]
[1771706077136,0.014581,68600.0,68595.0,0.014582]
[1771706081139,0.014581,68601.0,68595.0,0.014582]
[1771706090948,0.014581,68600.0,68595.0,0.014582]
[1771706091149,0.014581,68600.0,68594.0,0.014582]
[1771706091750,0.014582,68595.0,68588.0,0.029168]
[1771706091952,0.014582,68594.0,68589.0,0.014583]
[1771706092949,0.014582,68594.0,68588.0,0.014584]
[1771706094953,0.014583,68593.0,68588.0,0.014584]
[1771706097059,0.014583,68592.0,68587.0,0.00088]
[1771706097261,0.014583,68591.0,68586.0,0.014584]
[1771706098853,0.014584,68587.0,68580.0,0.09426223]
[1771706099059,0.014584,68586.0,68582.0,0.014585]
[1771706100056,0.014584,68587.0,68582.0,0.014585]
[1771706100246,0.014584,68589.0,68584.0,0.014584]
[1771706100451,0.014583,68591.0,68585.0,0.014584]
[1771706102261,0.014583,68590.0,68585.0,0.014584]
[1771706102759,0.014583,68590.0,68584.0,0.014584]
[1771706102950,0.014583,68590.0,68585.0,0.014584]
[1771706103360,0.014583,68591.0,68585.0,0.014584]
[1771706105458,0.014583,68590.0,68583.0,0.02917]
[1771706105657,0.014583,68591.0,68584.0,0.014584]
[1771706107363,0.014583,68591.0,68585.0,0.014584]
[1771706109766,0.014583,68592.0,68585.0,0.014584]
[1771706112277,0.014583,68591.0,68584.0,0.014585]
[1771706112573,0.014583,68592.0,68584.0,0.014585]
[1771706117376,0.014582,68599.0,68589.0,0.014583]
[1771706117676,0.014582,68598.0,68590.0,0.014583]
[1771706118783,0.014581,68599.0,68591.0,0.014583]
[1771706119186,0.27682285,68601.0,68592.0,0.014583]
[1771706119686,0.014581,68599.0,68591.0,0.014583]
[1771706120385,0.029163,68599.0,68590.0,0.014583]
[1771706121178,0.014581,68599.0,68590.0,0.014583]
[1771706122191,0.014582,68598.0,68590.0,0.014583]
[1771706123786,0.014581,68599.0,68590.0,0.014583]
[1771706124187,0.014581,68601.0,68591.0,0.014583]
[1771706124387,0.014581,68600.0,68591.0,0.014583]
[1771706124587,0.014582,68596.0,68587.0,0.014584]
[1771706125683,0.029164,68596.0,68587.0,0.014584]
[1771706128397,0.014582,68595.0,68587.0,0.014584]
[1771706147309,0.014582,68596.0,68587.0,0.014584]
[1771706148001,0.014582,68596.0,68587.0,0.029168]
[1771706148307,0.014582,68596.0,68587.0,0.014584]
[1771706149308,0.014582,68596.0,68587.0,0.029168]
[1771706149910,0.014582,68596.0,68587.0,0.014584]
[1771706150406,0.014582,68596.0,68587.0,0.029168]
[1771706151106,0.014582,68596.0,68587.0,0.014584]
[1771706155304,0.014582,68595.0,68587.0,0.014584]
[1771706157109,0.014583,68594.0,68585.0,0.014584]
[1771706158310,0.014583,68594.0,68586.0,0.014584]
[1771706159910,0.014582,68595.0,68586.0,0.014584]
[1771706162214,0.014582,68595.0,68585.0,0.014584]
[1771706162418,0.014582,68598.0,68588.0,0.014584]
[1771706162711,0.014581,68599.0,68589.0,0.014583]
[1771706162912,0.22719858,68598.0,68589.0,0.014583]
[1771706163209,0.014582,68598.0,68589.0,0.014583]
[1771706168121,0.014582,68597.0,68588.0,0.014584]
[1771706178619,0.014582,68596.0,68587.0,0.014584]
[1771706180223,0.014582,68597.0,68587.0,0.029168]
[1771706180817,0.014582,68597.0,68587.0,0.014584]
[1771706182925,0.014582,68597.0,68586.0,0.014584]
[1771706183218,0.014582,68595.0,68586.0,0.014584]
[1771706184318,0.014582,68596.0,68586.0,0.014584]
[1771706185726,0.014582,68596.0,68587.0,0.014584]
[1771706214243,0.014581,68600.0,68585.0,0.08699287]
[1771706214439,0.2123773,68599.0,68590.0,0.19157981]
[1771706214642,0.2123773,68598.0,68590.0,0.014583]
[1771706214944,0.2123773,68597.0,68590.0,0.014583]
[1771706215128,0.014581,68600.0,68590.0,0.014583]
[1771706215334,0.21237313,68599.0,68590.0,0.014583]
[1771706215644,0.21237313,68598.0,68590.0,0.014583]
[1771706215842,0.21237313,68597.0,68590.0,0.014583]
[1771706216142,0.029162,68600.0,68590.0,0.014583]
[1771706216337,0.21237152,68599.0,68590.0,0.014583]
[1771706216534,0.21237152,68598.0,68590.0,0.014583]
[1771706216734,0.21237152,68597.0,68590.0,0.014583]
[1771706216942,0.014581,68600.0,68590.0,0.014583]
[1771706217246,0.22695252,68599.0,68590.0,0.014583]
[1771706217446,0.21237152,68598.0,68590.0,0.014583]
[1771706217643,0.21237152,68597.0,68590.0,0.014583]
[1771706217834,0.014581,68599.0,68590.0,0.014583]
[1771706218034,0.21237008,68598.0,68590.0,0.014583]
[1771706218240,0.21237008,68597.0,68590.0,0.014583]
[1771706218540,0.014581,68600.0,68590.0,0.014583]
[1771706218741,0.21219233,68599.0,68590.0,0.014583]
[1771706219028,0.21219233,68598.0,68590.0,0.014583]
[1771706219232,0.21219233,68597.0,68590.0,0.014583]
[1771706219432,0.014581,68599.0,68590.0,0.014583]
[1771706223044,0.014581,68599.0,68593.0,0.00088]
[1771706223247,0.014581,68599.0,68590.0,0.014583]
[1771706223746,0.014581,68600.0,68590.0,0.014583]
[1771706223952,0.21158626,68599.0,68590.0,0.014583]
[1771706224145,0.014581,68600.0,68590.0,0.014583]
[1771706224347,0.21158577,68599.0,68590.0,0.029166]
[1771706224542,0.26253513,68608.0,68590.0,0.08627019]
[1771706224842,0.01458,68605.0,68595.0,0.08627019]
[1771706225147,0.014581,68603.0,68595.0,0.08627019]
[1771706236841,0.014581,68601.0,68595.0,0.08627019]
[1771706237851,0.014581,68601.0,68589.0,0.014583]
[1771706238157,0.014581,68599.0,68587.0,0.08498561]
[1771706238360,0.014582,68597.0,68587.0,0.09956961]
[1771706242864,0.014582,68596.0,68587.0,0.09956961]
[1771706249671,0.014582,68596.0,68587.0,0.11415361]
[1771706251070,0.014582,68596.0,68588.0,0.014584]
[1771706254477,0.014582,68597.0,68588.0,0.014584]
[1771706262876,0.014582,68599.0,68588.0,0.014584]
[1771706263083,0.014582,68598.0,68588.0,0.014584]
[1771706264683,0.014582,68598.0,68589.0,0.014583]
[1771706266178,0.014582,68599.0,68545.0,0.21032022]
[1771706266179,0.014591,68556.0,68545.0,0.21032022]
[1771706266491,0.58352,68597.0,68530.0,0.014596]
[1771706266492,0.014593,68543.0,68530.0,0.014596]
[1771706266778,0.014595,68535.0,68527.0,0.43751037]
[1771706266982,0.014595,68535.0,68528.0,1.20077764]
[1771706267179,0.34330016,68534.0,68528.0,0.98798973]
[1771706267382,0.34330016,68534.0,68511.0,0.07007627]
[1771706267383,0.014596,68529.0,68511.0,0.07007627]
[1771706267578,0.00011011,68534.0,68511.0,0.07007627]
[1771706267579,0.32859505,68528.0,68518.0,0.014598]
[1771706267773,0.28026704,68527.0,68522.0,0.014598]
[1771706267973,0.014596,68529.0,68521.0,0.014598]
[1771706268178,0.014596,68529.0,68520.0,0.08467427]
[1771706268380,0.014597,68527.0,68520.0,1.058066]
[1771706268579,0.014597,68526.0,68520.0,0.7231955]
[1771706268782,0.014597,68526.0,68521.0,0.3348705]
[1771706268981,0.014597,68526.0,68520.0,0.07007627]
[1771706269377,0.014597,68526.0,68522.0,0.3348705]
[1771706269777,0.014597,68526.0,68523.0,0.3348705]
[1771706269979,0.014597,68526.0,68521.0,0.65311923]
[1771706270181,0.014597,68526.0,68520.0,0.07007627]
[1771706270486,0.014597,68526.0,68522.0,0.3348705]
[1771706270784,0.014597,68526.0,68521.0,0.3348705]
[1771706271286,0.014597,68526.0,68520.0,0.07007627]
[1771706271487,0.014597,68526.0,68521.0,0.65311923]
[1771706271877,0.014597,68528.0,68520.0,0.07007627]
[1771706272081,0.014597,68528.0,68520.0,0.62613734]
[1771706272387,0.043791,68524.0,68472.0,0.014608]
[1771706272589,0.0146,68513.0,68488.0,0.07007627]
[1771706272884,0.07648378,68515.0,68501.0,0.014602]
[1771706272885,0.02938975,68512.0,68501.0,0.014602]
[1771706273188,0.0146,68510.0,68502.0,0.014602]
[1771706273373,0.0146,68510.0,68501.0,0.07007627]
[1771706273374,0.01468,68509.0,68501.0,0.08467827]
[1771706273577,0.014603,68499.0,68491.0,0.07007627]
[1771706273782,0.014603,68497.0,68484.0,0.07007627]
[1771706273980,0.029283,68496.0,68487.0,0.014605]
[1771706274282,0.014604,68494.0,68485.0,0.014606]
[1771706274688,0.014604,68493.0,68485.0,0.014606]
[1771706274886,0.014604,68493.0,68473.0,0.014608]
[1771706274887,0.10058825,68485.0,68461.0,0.014611]
[1771706275186,0.46712,68493.0,68454.0,0.07007627]
[1771706275187,0.014608,68476.0,68454.0,0.07007627]
[1771706275399,0.01468,68475.0,68467.0,0.014609]
[1771706275688,0.01488341,68474.0,68467.0,0.014609]
[1771706276187,0.02949141,68474.0,68465.0,0.01461]
[1771706276386,0.01472,68473.0,68467.0,0.014609]
[1771706276584,0.029328,68473.0,68465.0,0.01461]
[1771706276786,0.029328,68473.0,68443.0,0.08485481]
[1771706276787,0.10067372,68472.0,68443.0,0.08485481]
[1771706276978,0.07133366,68470.0,68459.0,0.014611]
[1771706277177,0.01472,68469.0,68456.0,0.07007627]
[1771706277484,0.014605,68490.0,68466.0,0.01461]
[1771706277688,0.014607,68480.0,68469.0,0.014609]
[1771706277889,0.01472,68479.0,68471.0,0.014608]
[1771706278090,0.014607,68481.0,68472.0,0.014608]
[1771706278386,0.014606,68484.0,68473.0,0.014608]
[1771706278591,0.014606,68481.0,68475.0,0.014608]
[1771706279288,0.014606,68482.0,68471.0,0.014609]
[1771706279591,0.029327,68481.0,68475.0,0.014608]
[1771706279791,0.34356524,68480.0,68476.0,0.014607]
[1771706279992,0.32884524,68479.0,68476.0,0.014607]
[1771706280194,0.32884524,68478.0,68474.0,0.014608]
[1771706280395,0.32884524,68477.0,68475.0,0.014608]
[1771706280596,0.34356524,68476.0,68475.0,0.014608]
[1771706280894,0.014605,68486.0,68478.0,0.014607]
[1771706281097,0.014605,68486.0,68472.0,0.014608]
[1771706281098,0.014607,68481.0,68474.0,0.014608]
[1771706281289,0.01472,68480.0,68475.0,0.014608]
[1771706281487,0.01472,68479.0,68475.0,0.014608]
[1771706281687,0.01472,68478.0,68475.0,0.014608]
[1771706282285,0.01472,68478.0,68473.0,0.014608]
[1771706282489,0.01472,68478.0,68474.0,0.014608]
[1771706283194,0.014606,68483.0,68476.0,0.014607]
[1771706283394,0.01472,68482.0,68476.0,0.014607]
[1771706283892,0.01472,68482.0,68477.0,0.014607]
[1771706284097,0.014607,68481.0,68475.0,0.014608]
[1771706285304,0.029326,68482.0,68476.0,0.014608]
[1771706287096,0.01472,68482.0,68478.0,0.014607]
[1771706287499,0.01472,68482.0,68476.0,0.014608]
[1771706287899,0.01472,68482.0,68477.0,0.014607]
[1771706288598,0.01472,68482.0,68478.0,0.014607]
[1771706289201,0.01472,68482.0,68475.0,0.014608]
[1771706289501,0.01472,68482.0,68478.0,0.014607]
[1771706289697,0.01472,68482.0,68473.0,0.014608]
[1771706289901,0.014607,68480.0,68474.0,0.014608]
[1771706290101,0.01472,68479.0,68471.0,0.014608]
[1771706290504,0.01472,68479.0,68473.0,0.014608]
[1771706290802,0.01472,68479.0,68475.0,0.014608]
[1771706292017,0.01472,68479.0,68476.0,0.014607]
[1771706292216,0.01472,68479.0,68475.0,0.014608]
[1771706292923,0.3288309,68478.0,68476.0,0.014607]
[1771706293220,0.014606,68484.0,68479.0,0.014607]
[1771706293421,0.01472,68483.0,68479.0,0.014607]
[1771706293616,0.01472,68482.0,68479.0,0.014607]
[1771706293818,0.01472,68482.0,68478.0,0.014607]
[1771706294222,0.01472,68482.0,68479.0,0.014607]
[1771706294423,0.01472,68482.0,68477.0,0.014607]
[1771706294623,0.01472,68482.0,68479.0,0.014607]
[1771706294922,0.014609,68472.0,68466.0,0.01461]
[1771706295223,0.01472,68471.0,68470.0,0.014609]
[1771706296927,0.01472,68471.0,68469.0,0.014609]
[1771706297129,0.01472,68471.0,68470.0,0.014609]
[1771706297315,0.014606,68484.0,68467.0,0.28510968]
[1771706297518,0.014607,68481.0,68475.0,0.014608]
[1771706298523,0.014607,68478.0,68473.0,0.014608]
[1771706298728,0.014607,68479.0,68470.0,0.014609]
[1771706298928,0.014607,68477.0,68472.0,0.014608]
[1771706299728,0.014608,68476.0,68471.0,0.014609]
[1771706300328,0.014608,68475.0,68470.0,0.014609]
[1771706300730,0.014608,68476.0,68471.0,0.014609]
[1771706300931,0.014607,68477.0,68471.0,0.014609]
[1771706301430,0.014608,68476.0,68466.0,0.014609]
[1771706301633,0.014608,68476.0,68470.0,0.014609]
[1771706301931,0.36113176,68487.0,68468.0,0.014609]
[1771706302127,0.36113176,68487.0,68473.0,0.014608]
[1771706302128,0.014607,68479.0,68473.0,0.014608]
[1771706302334,0.014607,68478.0,68468.0,0.014609]
[1771706302527,0.014608,68476.0,68459.0,0.12363122]
[1771706302725,0.014608,68476.0,68471.0,0.014609]
[1771706303234,0.014607,68477.0,68471.0,0.014609]
[1771706304132,0.014606,68484.0,68473.0,0.014608]
[1771706304333,0.014607,68479.0,68472.0,0.014608]
[1771706305229,0.3288371,68478.0,68473.0,0.014608]
[1771706305538,0.3288371,68477.0,68473.0,0.014608]
[1771706305836,0.3288371,68476.0,68463.0,0.01461]
[1771706306132,0.3288371,68475.0,68472.0,0.029216]
[1771706306438,0.3288371,68474.0,68472.0,0.014608]
[1771706306634,0.014607,68478.0,68473.0,0.014608]
[1771706306835,0.3288372,68477.0,68473.0,0.014608]
[1771706307035,0.3288372,68476.0,68473.0,0.014608]
[1771706307338,0.3288372,68475.0,68473.0,0.014608]
[1771706307535,0.3288372,68474.0,68473.0,0.014608]
[1771706307737,0.3288372,68474.0,68473.0,0.015608]
[1771706308037,0.014607,68478.0,68473.0,0.001]
[1771706308535,0.014607,68478.0,68473.0,0.002]
[1771706308736,0.37573776,68485.0,68477.0,0.014607]
[1771706308933,0.37573776,68485.0,68475.0,0.014608]
[1771706308934,0.014606,68481.0,68475.0,0.014608]
[1771706309142,0.014607,68480.0,68475.0,0.014608]
[1771706310532,0.014606,68481.0,68474.0,0.014608]
[1771706310743,0.014607,68477.0,68472.0,0.014608]
[1771706311743,0.014607,68478.0,68472.0,0.014608]
[1771706311942,0.014607,68478.0,68473.0,0.014608]
[1771706312543,0.014607,68480.0,68475.0,0.014608]
[1771706313248,0.014607,68480.0,68474.0,0.014608]
[1771706313433,0.014606,68484.0,68472.0,0.014608]
[1771706313635,0.014607,68478.0,68472.0,0.014608]
[1771706313835,0.014607,68478.0,68472.0,0.029216]
[1771706314141,0.014607,68479.0,68474.0,0.014608]
[1771706316441,0.014607,68478.0,68472.0,0.029216]
[1771706316937,0.014607,68478.0,68473.0,0.014608]
[1771706317641,0.014607,68479.0,68473.0,0.014608]
[1771706318937,0.014607,68479.0,68474.0,0.014608]
[1771706320038,0.25166042,68478.0,68476.0,0.014607]
[1771706320342,0.014607,68481.0,68476.0,0.014607]
[1771706320542,0.25028747,68480.0,68476.0,0.014607]
[1771706320739,0.25028747,68479.0,68475.0,0.014608]
[1771706323646,0.26489447,68479.0,68475.0,0.014608]
[1771706323948,0.014607,68479.0,68475.0,0.014608]
[1771706324149,0.014607,68479.0,68474.0,0.014608]
[1771706325745,0.014607,68478.0,68473.0,0.014608]
[1771706325950,0.014607,68479.0,68469.0,0.014609]
[1771706326949,0.014607,68477.0,68470.0,0.014609]
[1771706327150,0.014607,68478.0,68471.0,0.014608]
[1771706327451,0.014608,68476.0,68471.0,0.014608]
[1771706330451,0.029216,68476.0,68471.0,0.014608]
[1771706330651,0.014607,68478.0,68471.0,0.014608]
[1771706331050,0.014608,68476.0,68472.0,0.015408]
[1771706331254,0.17759607,68480.0,68474.0,0.014608]
[1771706331459,0.014607,68479.0,68474.0,0.014608]
[1771706331956,0.029214,68479.0,68474.0,0.014608]
[1771706332453,0.014607,68478.0,68474.0,0.014608]
[1771706337660,0.014607,68479.0,68474.0,0.014608]
[1771706337863,0.014607,68480.0,68474.0,0.029216]
[1771706338060,0.014607,68479.0,68474.0,0.014608]
[1771706339253,0.014607,68479.0,68473.0,0.014608]
[1771706340361,0.014607,68478.0,68473.0,0.014608]
[1771706343960,0.014607,68480.0,68474.0,0.014608]
[1771706344353,0.029214,68480.0,68474.0,0.014608]
[1771706345365,0.014607,68479.0,68474.0,0.014608]
[1771706345865,0.014607,68479.0,68473.0,0.014608]
[1771706346262,0.014607,68479.0,68474.0,0.014608]
[1771706348464,0.014608,68477.0,68471.0,0.014608]
[1771706348667,0.014608,68476.0,68470.0,0.014609]
[1771706349668,0.014608,68476.0,68471.0,0.014609]
[1771706349867,0.029216,68476.0,68470.0,0.014609]
[1771706350770,0.014608,68476.0,68471.0,0.014609]
[1771706351763,0.014607,68477.0,68471.0,0.014609]
[1771706355275,0.014608,68476.0,68470.0,0.029218]
[1771706355674,0.014608,68476.0,68471.0,0.014609]
[1771706355980,0.014608,68474.0,68468.0,0.014609]
[1771706356481,0.014608,68474.0,68469.0,0.014609]
[1771706357082,0.014608,68474.0,68470.0,0.014609]
[1771706359283,0.014608,68475.0,68470.0,0.014609]
[1771706364482,0.014608,68475.0,68470.0,0.029218]
[1771706366777,0.014608,68475.0,68471.0,0.014609]
[1771706367782,0.014608,68476.0,68471.0,0.014609]
[1771706368480,0.014608,68476.0,68466.0,0.01461]
[1771706368481,0.014608,68472.0,68467.0,0.014609]
[1771706368682,0.014609,68472.0,68458.0,0.014611]
[1771706368884,0.014609,68472.0,68466.0,0.014609]
[1771706369192,0.014609,68472.0,68467.0,0.014609]
[1771706369678,0.37793313,68479.0,68457.0,0.43841423]
[1771706369978,0.014608,68475.0,68470.0,0.014609]
[1771706371471,0.014605,68487.0,68480.0,0.014607]
[1771706371785,0.014607,68481.0,68476.0,0.014607]
[1771706372180,0.014607,68481.0,68475.0,0.014608]
[1771706376190,0.014607,68478.0,68472.0,0.014608]
[1771706381392,0.014607,68478.0,68473.0,0.014608]
[1771706383794,0.014607,68480.0,68475.0,0.014608]
[1771706386093,0.014607,68480.0,68473.0,0.014608]
[1771706386298,0.014607,68480.0,68474.0,0.014608]
[1771706394905,0.014607,68479.0,68474.0,0.014608]
[1771706398910,0.014607,68479.0,68478.0,0.0002]
[1771706400303,0.014607,68478.0,68459.0,0.014611]
[1771706400512,0.014609,68469.0,68463.0,0.01461]
[1771706401006,0.014608,68477.0,68463.0,0.01461]
[1771706401007,0.014609,68468.0,68463.0,0.01461]
[1771706401604,0.014609,68471.0,68465.0,0.01461]
[1771706401799,0.014608,68476.0,68469.0,0.014609]